[Event "I Torneo de Maestras 2019"]
[Site "Corralejo"]
[Date "2019.09.24"]
[Round "5.3"]
[White "Guillo Longares, Cecilia"]
[Black "Thomas, Anysia"]
[Result "0-1"]
[ECO "D71"]
[WhiteElo "1960"]
[BlackElo "2112"]
[Annotator "NA"]
[PlyCount "268"]
[EventDate "2019.09.21"]
[EventType "tourn"]
[EventCountry "ESP"]
[SourceTitle "playchess.com"]
[Source "ChessBase"]
[SourceQuality "1"]
[TimeControl "5400+30"]

1. d4 {[%emt 0:00:00]} Nf6 {[%emt 0:00:00]} 2. c4 {[%emt 0:00:00]} g6 {[%emt 0:00:00]} 3. Nf3 {[%emt 0:00:00]} Bg7 {[%emt 0:00:00]} 4. g3 {[%emt 0:00:00]} d5 {[%emt 0:00:00]} 5. cxd5 {[%emt 0:00:00]} Nxd5 {[%emt 0:00:00]} 6. Bg2 {[%emt 0:00:00]} Nb6 {[%emt 0:00:03]} 7. Nc3 {[%emt 0:00:00]} Nc6 {[%emt 0:00:28]} 8. O-O {[%emt 0:00:04]} Nxd4 {[%emt 0:01:12]} 9. Nxd4 {[%emt 0:00:08]} Qxd4 {[%emt 0:00:05]} 10. Nb5 {[%emt 0:01:00] D71: Fianchetto Grünfeld: 3 g3 d5 sidelines and 5 cxd5 (without Nf3)} Qc4 {[%emt 0:00:39]} 11. Qb3 {[%emt 0:02:33]} O-O {[%emt 0:00:17]} 12. Qxc4 {[%emt 0:00:25]} Nxc4 {[%emt 0:00:04]} 13. Nxc7 {[%emt 0:00:11]} Rb8 {[%emt 0:00:05]} 14. Nd5 {[%emt 0:04:31]} Be6 {[%emt 0:02:10] [#]} 15. Bf4 $146 {[%emt 0:06:27]} ({Predecessor:} 15. Nxe7+ Kh8 16. Nd5 Nxb2 17. Rb1 {½-½ (17) Kempinski,R (2653)-Hracek,Z (2581) Germany 2005}) 15... Rbd8 {[%emt 0:02:42]} 16. Nxe7+ {[%emt 0:05:46]} Kh8 {[%emt 0:00:05]} 17. e4 {[%emt 0:00:27]} Nxb2 {[%emt 0:06:24]} 18. Rab1 {[%emt 0:08:06]} Bxa2 {[%emt 0:07:11]} 19. Ra1 {[%emt 0:00:30]} Bc4 {[%emt 0:02:04]} 20. Rfb1 {[%emt 0:01:59]} Rd7 {[%emt 0:28:10]} 21. Nd5 {[%emt 0:19:03]} b5 {[%emt 0:04:59]} 22. Be3 {[%emt 0:03:12]} Na4 {[%emt 0:04:35]} 23. Ra3 {[%emt 0:00:12]} a6 {[%emt 0:01:55]} 24. Nb6 {[%emt 0:01:54]} Nxb6 {[%emt 0:00:29]} 25. Bxb6 {[%emt 0:00:05]} b4 {[%emt 0:04:18]} 26. Ra4 {[%emt 0:00:01]} Bc3 {[%emt 0:01:09]} 27. Bf1 {[%emt 0:02:56]} Bxf1 {[%emt 0:03:22]} 28. Kxf1 {[%emt 0:00:05]} Re8 {[%emt 0:00:10]} 29. Rxa6 {[%emt 0:07:11]} Rxe4 {[%emt 0:01:22]} 30. Ra8+ {[%emt 0:00:45]} Kg7 {[%emt 0:00:07]} 31. Rb8 {[%emt 0:00:17]} Rde7 {[%emt 0:08:57]} 32. Be3 {[%emt 0:01:53]} h5 {[%emt 0:03:51]} 33. Kg2 {[%emt 0:02:00]} Re8 {[%emt 0:02:38]} 34. Rb7 {[%emt 0:01:21]} R8e7 {[%emt 0:01:01]} 35. Rb8 {[%emt 0:00:12]} Rc4 {[%emt 0:02:56]} 36. Kf3 {[%emt 0:06:47]} Rd7 {[%emt 0:02:06]} 37. h4 {[%emt 0:05:29]} Rcc7 {[%emt 0:00:17]} 38. R8xb4 {[%emt 0:02:31]} Bxb4 {[%emt 0:00:05]} 39. Rxb4 {[%emt 0:00:05]} Rb7 {[%emt 0:00:38]} 40. Rxb7 {[%emt 0:04:39]} Rxb7 {[%emt 0:00:02]} 41. Bd4+ {[%emt 0:01:26]} f6 {[%emt 0:00:18]} 42. Be3 {[%emt 0:00:25]} Rb4 {[%emt 0:00:31]} 43. Kg2 {[%emt 0:02:46]} Kf7 {[%emt 0:00:05]} 44. Kf3 {[%emt 0:00:20]} Ke6 {[%emt 0:00:04]} 45. Kg2 {[%emt 0:00:46]} Kf5 {[%emt 0:00:11]} 46. Bc5 {[%emt 0:01:08]} Rb3 {[%emt 0:00:30]} 47. Bd4 {[%emt 0:01:12]} Rd3 {[%emt 0:00:08]} 48. Bc5 {[%emt 0:00:36]} Kg4 {[%emt 0:01:10]} 49. Be7 {[%emt 0:01:06]} Rf3 {[%emt 0:08:53]} 50. Bd8 {[%emt 0:02:57]} Rf5 {[%emt 0:00:13]} 51. Bb6 {[%emt 0:01:33]} g5 {[%emt 0:00:38]} 52. hxg5 {[%emt 0:00:05]} fxg5 {[%emt 0:00:05]} 53. Be3 {[%emt 0:00:27]} h4 {[%emt 0:00:43]} 54. gxh4 {[%emt 0:00:16]} gxh4 {[%emt 0:00:16]} 55. Bd4 {[%emt 0:01:01]} Rf3 {[%emt 0:00:35]} 56. Be3 {[%emt 0:00:48]} Rf7 {[%emt 0:00:59]} 57. Bd4 {[%emt 0:00:42]} Rd7 {[%emt 0:02:13]} 58. Be3 {[%emt 0:00:11]} Rg7 {[%emt 0:00:17]} 59. Bd4 {[%emt 0:00:09]} Rg8 {[%emt 0:00:09]} 60. Bc5 {[%emt 0:01:38]} h3+ {[%emt 0:01:07]} 61. Kh2 {[%emt 0:00:12]} Kf3 {[%emt 0:00:18]} 62. Be3 {[%emt 0:01:24]} Rg7 {[%emt 0:00:11]} 63. Bd4 {[%emt 0:00:59]} Rd7 {[%emt 0:01:49]} 64. Be3 {[%emt 0:01:31]} Kg4 {[%emt 0:00:37]} 65. Bc5 {[%emt 0:00:40]} Kh4 {[%emt 0:00:54]} 66. Bb6 {[%emt 0:00:32]} Rg7 {[%emt 0:00:35]} 67. Bd8+ {[%emt 0:00:27]} Kg4 {[%emt 0:00:06]} 68. Bb6 {[%emt 0:00:08]} Rg6 {[%emt 0:00:09]} 69. Bc5 {[%emt 0:00:21]} Rg5 {[%emt 0:01:05]} 70. Be3 {[%emt 0:00:21]} Rd5 {[%emt 0:00:12]} 71. Bb6 {[%emt 0:00:19]} Kh4 {[%emt 0:00:40]} 72. Be3 {[%emt 0:00:27]} Rd6 {[%emt 0:00:28]} 73. Bc5 $2 {[%emt 0:01:03]} (73. f3 $11 {and White is okay.}) 73... Re6 {[%emt 0:00:11]} 74. Be3 {[%emt 0:01:20]} Rg6 $19 {[%emt 0:00:08]} 75. Bd4 {[%emt 0:00:43]} Rg2+ {[%emt 0:00:04]} 76. Kh1 {[%emt 0:00:04]} Kg4 {[%emt 0:01:18]} 77. Be3 {[%emt 0:00:31]} Kf3 {[%emt 0:00:20]} 78. Bc5 {[%emt 0:00:47]} Ke4 {[%emt 0:02:53]} 79. Be3 {[%emt 0:00:44]} Kd3 {[%emt 0:00:24]} 80. Bc5 {[%emt 0:00:09]} Ke2 {[%emt 0:00:04]} 81. Be3 {[%emt 0:00:14]} Kd3 {[%emt 0:01:13]} 82. Bc5 {[%emt 0:00:08]} Kd2 {[%emt 0:00:19]} 83. Be3+ {[%emt 0:00:29]} Ke2 {[%emt 0:00:05]} 84. Bc5 {[%emt 0:00:19]} Kf3 {[%emt 0:00:06]} 85. Be3 {[%emt 0:00:29]} h2 {[%emt 0:00:05]} 86. Bc5 {[%emt 0:00:40]} Rg5 {[%emt 0:00:08]} 87. Bd6 {[%emt 0:01:46]} Kxf2 {[%emt 0:01:20]} 88. Bxh2 {[%emt 0:00:02]} Kf1 {[%emt 0:01:38]} 89. Bf4 {[%emt 0:00:18]} Rg7 {[%emt 0:00:30]} 90. Be5 {[%emt 0:00:58]} Rg6 {[%emt 0:00:27]} 91. Bh2 {[%emt 0:00:33]} Kf2 {[%emt 0:00:09]} 92. Be5 {[%emt 0:00:37]} Rh6+ {[%emt 0:01:01]} 93. Bh2 {[%emt 0:00:09]} Kf3 {[%emt 0:00:03]} 94. Kg1 {[%emt 0:00:14]} Rg6+ {[%emt 0:00:05]} 95. Kh1 {[%emt 0:00:19]} Rc6 {[%emt 0:00:22]} 96. Bg1 {[%emt 0:01:05]} Kg3 {[%emt 0:00:28]} 97. Bd4 {[%emt 0:01:43]} Rc4 {[%emt 0:00:48]} 98. Ba7 {[%emt 0:01:48]} Ra4 {[%emt 0:00:34]} 99. Bb6 {[%emt 0:00:34]} Ra1+ {[%emt 0:01:15]} 100. Bg1 {[%emt 0:00:07]} Kf3 {[%emt 0:00:36]} 101. Kh2 {[%emt 0:00:04]} Ra2+ {[%emt 0:00:15]} 102. Kh1 {[%emt 0:00:06]} Ra6 {[%emt 0:00:23]} 103. Bh2 {[%emt 0:00:27]} Rg6 {[%emt 0:00:49]} 104. Be5 {[%emt 0:01:23]} Kf2 {[%emt 0:00:09]} 105. Bh2 {[%emt 0:00:19]} Rg2 {[%emt 0:00:06]} 106. Bd6 {[%emt 0:01:58]} Rg1+ {[%emt 0:00:04]} 107. Kh2 {[%emt 0:00:04]} Rg5 {[%emt 0:00:40]} 108. Kh1 {[%emt 0:01:23]} Rd5 {[%emt 0:00:09]} 109. Bc7 {[%emt 0:00:31]} Rd7 {[%emt 0:00:58]} 110. Bb8 {[%emt 0:00:32]} Rb7 {[%emt 0:00:27]} 111. Bd6 {[%emt 0:00:15]} Rd7 {[%emt 0:00:32]} 112. Bb8 {[%emt 0:00:05]} Rd1+ {[%emt 0:00:15]} 113. Kh2 {[%emt 0:00:07]} Rd8 {[%emt 0:00:13]} 114. Bg3+ {[%emt 0:00:59]} Kf3 {[%emt 0:00:11]} 115. Bc7 {[%emt 0:01:02]} Rd1 {[%emt 0:00:21]} 116. Bb8 {[%emt 0:00:24]} Rb1 {[%emt 0:00:51]} 117. Bc7 {[%emt 0:00:21]} Rb2+ {[%emt 0:00:10]} 118. Kh1 {[%emt 0:00:15]} Kf2 {[%emt 0:00:49]} 119. Bd6 {[%emt 0:00:31]} Rc2 {[%emt 0:00:27]} 120. Bb8 {[%emt 0:00:17]} Rc8 {[%emt 0:00:28]} 121. Bd6 {[%emt 0:00:26]} Rc6 {[%emt 0:00:53]} 122. Bb8 {[%emt 0:00:16]} Rc1+ {[%emt 0:01:34]} 123. Kh2 {[%emt 0:00:06]} Kf3 {[%emt 0:00:06]} 124. Bd6 {[%emt 0:01:02]} Rc2+ {[%emt 0:00:28]} 125. Kh1 {[%emt 0:00:04]} Kg4 {[%emt 0:00:55]} 126. Bb8 {[%emt 0:00:33]} Kh3 {[%emt 0:00:28]} 127. Ba7 {[%emt 0:00:05]} Kg3 {[%emt 0:00:42]} 128. Bb8+ {[%emt 0:00:08]} Kh3 {[%emt 0:00:04]} 129. Ba7 {[%emt 0:00:03]} Rb2 {[%emt 0:00:04]} 130. Bc5 {[%emt 0:00:09]} Rh2+ {[%emt 0:00:58]} 131. Kg1 {[%emt 0:00:05]} Rc2 {[%emt 0:00:05]} 132. Be3 {[%emt 0:01:13]} Kg3 {[%emt 0:00:19]} 133. Kh1 {[%emt 0:00:21]} Rh2+ {[%emt 0:00:07]} 134. Kg1 {[%emt 0:00:20]} Re2 {[%emt 0:00:04]} 0-1

[Event "I Torneo de Maestras 2019"]
[Site "Corralejo"]
[Date "2019.09.24"]
[Round "5.4"]
[White "Safranska, Anda"]
[Black "Rodriguez Redondo, Adhara"]
[Result "0-1"]
[ECO "A08"]
[WhiteElo "2139"]
[BlackElo "2065"]
[Annotator "ChessBase"]
[PlyCount "96"]
[EventDate "2019.09.21"]
[EventType "tourn"]
[EventCountry "ESP"]
[SourceTitle "playchess.com"]
[Source "ChessBase"]
[SourceQuality "1"]
[TimeControl "5400+30"]

1. Nf3 {[%emt 0:00:00]} d5 {[%emt 0:00:00]} 2. g3 {[%emt 0:00:00]} e6 {[%emt 0:00:00]} 3. Bg2 {[%emt 0:00:00]} c5 {[%emt 0:00:00]} 4. O-O {[%emt 0:00:27]} Nc6 {[%emt 0:00:00]} 5. d3 {[%emt 0:00:16]} Bd6 {[%emt 0:00:00]} 6. e4 {[%emt 0:01:47]} Nge7 {[%emt 0:01:29]} 7. Re1 {[%emt 0:00:31]} Qc7 {[%emt 0:02:57]} 8. Nc3 {[%emt 0:02:29]} d4 {[%emt 0:11:59]} 9. Nb5 {[%emt 0:00:47]} Qb8 {[%emt 0:02:06]} 10. Nxd6+ {[%emt 0:12:01]} Qxd6 {[%emt 0:00:05]} 11. e5 {[%emt 0:00:36]} Qc7 {[%emt 0:01:49]} 12. h4 {[%emt 0:01:05]} Bd7 {[%emt 0:09:07]} 13. c4 {[%emt 0:01:46]} O-O-O {[%emt 0:10:34]} 14. a3 {[%emt 0:02:05]} f6 {[%emt 0:02:01]} 15. exf6 {[%emt 0:00:57]} gxf6 {[%emt 0:00:09]} 16. b4 {[%emt 0:00:13]} e5 {[%emt 0:05:12]} 17. bxc5 {[%emt 0:05:59]} Rdg8 {[%emt 0:05:12]} 18. Rb1 {[%emt 0:03:23]} Nf5 {[%emt 0:04:29]} 19. Kf1 {[%emt 0:07:12]} Nxg3+ {[%emt 0:09:45]} 20. fxg3 {[%emt 0:00:11]} Rxg3 {[%emt 0:00:13]} 21. Rb2 {[%emt 0:04:23]} Rhg8 {[%emt 0:01:32]} 22. Ng1 {[%emt 0:02:33]} Bf5 {[%emt 0:04:06]} 23. Re4 {[%emt 0:05:10]} Bxe4 {[%emt 0:04:25]} 24. dxe4 {[%emt 0:01:12]} Qg7 {[%emt 0:03:46]} 25. Qe2 {[%emt 0:03:41]} Qf7 {[%emt 0:01:25]} 26. Bh6 {[%emt 0:07:42]} Rxg2 {[%emt 0:01:46]} 27. Qxg2 {[%emt 0:00:15]} Rxg2 {[%emt 0:00:05]} 28. Rxg2 {[%emt 0:00:09]} Qxc4+ {[%emt 0:00:14]} 29. Kf2 {[%emt 0:03:02]} Qxc5 {[%emt 0:02:19]} 30. Rg8+ {[%emt 0:00:53]} Kc7 {[%emt 0:00:53]} 31. Nf3 {[%emt 0:00:12]} Qxa3 {[%emt 0:01:56]} 32. Rg7+ {[%emt 0:00:10]} Kb6 {[%emt 0:00:27]} 33. Rxh7 {[%emt 0:00:05]} Qd3 {[%emt 0:02:06]} 34. Rf7 {[%emt 0:00:47]} Qxe4 {[%emt 0:00:53]} 35. Rxf6 {[%emt 0:00:05]} a5 {[%emt 0:01:05]} 36. Kg3 {[%emt 0:02:09]} a4 {[%emt 0:00:56]} 37. Bf8 {[%emt 0:00:42]} Qe3 {[%emt 0:03:49]} 38. Kg4 {[%emt 0:02:00]} a3 {[%emt 0:02:00]} 39. Bxa3 {[%emt 0:03:57]} Qxa3 {[%emt 0:00:04]} 40. h5 {[%emt 0:00:06]} Qe7 {[%emt 0:00:37]} 41. Kf5 {[%emt 0:00:21]} Qh7+ {[%emt 0:01:05]} 42. Kg5 {[%emt 0:00:21]} Kc5 {[%emt 0:01:21]} 43. h6 {[%emt 0:00:25]} e4 {[%emt 0:01:21]} 44. Nh4 {[%emt 0:00:28]} Ne7 {[%emt 0:01:15]} 45. Re6 {[%emt 0:11:54]} Qg8+ {[%emt 0:01:26]} 46. Kf6 {[%emt 0:00:05]} Nd5+ {[%emt 0:00:33]} 47. Kf5 {[%emt 0:01:12]} Qf7+ {[%emt 0:00:13]} 48. Ke5 {[%emt 0:00:06]} Qf4# {[%emt 0:00:25]} 0-1

[Event "I Torneo de Maestras 2019"]
[Site "Corralejo"]
[Date "2019.09.24"]
[Round "5.5"]
[White "Terbe, Julianna"]
[Black "Martinez, Ayelen"]
[Result "1-0"]
[ECO "E63"]
[WhiteElo "2298"]
[BlackElo "2169"]
[Annotator "ChessBase"]
[PlyCount "63"]
[EventDate "2019.09.21"]
[EventType "tourn"]
[EventCountry "ESP"]
[SourceTitle "playchess.com"]
[Source "ChessBase"]
[SourceQuality "1"]
[TimeControl "5400+30"]

1. d4 {[%emt 0:00:00]} Nf6 {[%emt 0:03:25]} 2. Nf3 {[%emt 0:00:00]} g6 {[%emt 0:00:10]} 3. g3 {[%emt 0:00:00]} Bg7 {[%emt 0:00:15]} 4. Bg2 {[%emt 0:00:00]} O-O {[%emt 0:00:36]} 5. c4 {[%emt 0:00:00]} d6 {[%emt 0:02:47]} 6. O-O {[%emt 0:00:08]} Nc6 {[%emt 0:01:25]} 7. Nc3 {[%emt 0:00:07]} a6 {[%emt 0:00:27]} 8. Qd3 {[%emt 0:01:52]} Bf5 {[%emt 0:06:49]} 9. e4 {[%emt 0:00:13]} Bg4 {[%emt 0:00:06]} 10. Ne1 {[%emt 0:00:07]} Qd7 {[%emt 0:01:29]} 11. f3 {[%emt 0:01:56]} Bh3 {[%emt 0:00:08]} 12. Be3 {[%emt 0:00:04]} Rab8 {[%emt 0:05:15]} 13. Nc2 {[%emt 0:09:20]} h5 {[%emt 0:05:01]} 14. b4 {[%emt 0:03:36]} Bxg2 {[%emt 0:12:46]} 15. Kxg2 {[%emt 0:00:55]} b5 {[%emt 0:00:06]} 16. a4 {[%emt 0:08:00]} bxc4 {[%emt 0:22:44]} 17. Qxc4 {[%emt 0:00:08]} Rfc8 {[%emt 0:00:58]} 18. Rab1 {[%emt 0:12:44]} Ra8 {[%emt 0:01:00]} 19. Rfc1 {[%emt 0:03:59]} Nd8 {[%emt 0:04:34]} 20. Qe2 {[%emt 0:04:22]} h4 {[%emt 0:03:56]} 21. g4 {[%emt 0:05:59]} c5 {[%emt 0:03:51]} 22. e5 {[%emt 0:06:19]} Ne8 {[%emt 0:11:44]} 23. dxc5 {[%emt 0:09:37]} dxc5 {[%emt 0:04:10]} 24. bxc5 {[%emt 0:00:06]} Bxe5 {[%emt 0:01:18]} 25. Rd1 {[%emt 0:00:23]} Qe6 {[%emt 0:00:27]} 26. Nd5 {[%emt 0:02:54]} Rab8 {[%emt 0:00:35]} 27. Rb6 {[%emt 0:02:11]} Rxb6 {[%emt 0:02:37]} 28. Nxb6 {[%emt 0:00:58]} Rb8 {[%emt 0:00:08]} 29. Qxa6 {[%emt 0:05:22]} Nf6 {[%emt 0:00:13]} 30. Qc4 {[%emt 0:02:21]} h3+ {[%emt 0:03:18]} 31. Kxh3 {[%emt 0:06:52]} Qc6 {[%emt 0:00:05]} 32. Kg2 {[%emt 0:01:15]} 1-0

[Event "I Torneo de Maestras 2019"]
[Site "Corralejo"]
[Date "2019.09.25"]
[Round "6.1"]
[White "Palma, Maria"]
[Black "Martinez, Ayelen"]
[Result "0-1"]
[ECO "E81"]
[WhiteElo "2100"]
[BlackElo "2169"]
[Annotator "NA"]
[PlyCount "74"]
[EventDate "2019.09.21"]
[EventType "tourn"]
[EventCountry "ESP"]
[SourceTitle "playchess.com"]
[Source "ChessBase"]
[SourceQuality "1"]
[TimeControl "5400+30"]

1. d4 {[%emt 0:00:00]} Nf6 {[%emt 0:00:00]} 2. c4 {[%emt 0:00:00]} g6 {[%emt 0:00:00]} 3. f3 {[%emt 0:00:00]} Bg7 {[%emt 0:00:08]} 4. e4 {[%emt 0:00:00]} d6 {[%emt 0:00:06]} 5. Nc3 {[%emt 0:00:00]} O-O {[%emt 0:00:40]} 6. Be3 {[%emt 0:00:05]} Nbd7 {[%emt 0:01:17]} 7. Qd2 {[%emt 0:01:01]} c5 {[%emt 0:00:08]} 8. Nge2 {[%emt 0:05:16]} a6 {[%emt 0:02:47]} 9. Rd1 {[%emt 0:03:33]} cxd4 {[%emt 0:05:00]} 10. Nxd4 {[%emt 0:00:22]} Ne5 {[%emt 0:00:10]} 11. Be2 {[%emt 0:02:55]} Bd7 {[%emt 0:01:14]} 12. O-O {[%emt 0:02:29]} Rc8 {[%emt 0:00:11]} 13. b3 {[%emt 0:00:53]} Nc6 {[%emt 0:07:55]} 14. Nc2 {[%emt 0:06:43]} Be6 {[%emt 0:05:06]} 15. Bf2 {[%emt 0:06:26]} Nd7 {[%emt 0:01:03]} 16. Ne3 {[%emt 0:04:16]} f5 {[%emt 0:00:58]} 17. exf5 {[%emt 0:03:03]} gxf5 {[%emt 0:00:08]} 18. Ned5 {[%emt 0:02:48]} Kh8 {[%emt 0:00:39]} 19. Rfe1 {[%emt 0:03:56]} Bg8 {[%emt 0:12:07]} 20. Bh4 {[%emt 0:13:59]} Qe8 {[%emt 0:00:27]} 21. Nxe7 {[%emt 0:08:21]} Nxe7 {[%emt 0:06:00]} 22. Bf1 {[%emt 0:05:38]} Bf6 {[%emt 0:09:24]} 23. Bxf6+ {[%emt 0:02:56]} Rxf6 {[%emt 0:00:26]} 24. Qf4 {[%emt 0:10:27]} Qf8 {[%emt 0:03:29]} 25. Rd2 {[%emt 0:09:05]} Ng6 {[%emt 0:02:52]} 26. Qd4 {[%emt 0:00:31]} Qg7 {[%emt 0:00:33]} 27. Rde2 {[%emt 0:01:04]} Nge5 {[%emt 0:02:39]} 28. Kh1 {[%emt 0:00:49]} Rh6 {[%emt 0:04:42]} 29. Qd2 {[%emt 0:03:12]} Nf6 {[%emt 0:01:35]} 30. Qxd6 {[%emt 0:04:11]} Nfg4 {[%emt 0:06:32]} 31. Qxh6 {[%emt 0:00:06]} Qxh6 {[%emt 0:00:08]} 32. fxg4 {[%emt 0:00:06]} Nxg4 {[%emt 0:00:26]} 33. h3 {[%emt 0:00:24]} Qh4 {[%emt 0:07:41]} 34. Kg1 {[%emt 0:00:52]} Nf6 {[%emt 0:00:06]} 35. Nd1 {[%emt 0:01:01]} Qd4+ {[%emt 0:01:53]} 36. Kh1 {[%emt 0:00:02]} Ne4 {[%emt 0:00:12]} 37. Re3 {[%emt 0:00:51]} Re8 {[%emt 0:01:43]} 0-1

[Event "I Torneo de Maestras 2019"]
[Site "Corralejo"]
[Date "2019.09.25"]
[Round "6.2"]
[White "Rodriguez Redondo, Adhara"]
[Black "Terbe, Julianna"]
[Result "0-1"]
[ECO "C54"]
[WhiteElo "2065"]
[BlackElo "2298"]
[Annotator "NA"]
[PlyCount "190"]
[EventDate "2019.09.21"]
[EventType "tourn"]
[EventCountry "ESP"]
[SourceTitle "playchess.com"]
[Source "ChessBase"]
[SourceQuality "1"]
[TimeControl "5400+30"]

1. e4 {[%emt 0:00:00]} e5 {[%emt 0:00:00]} 2. Nf3 {[%emt 0:00:00]} Nc6 {[%emt 0:00:00]} 3. Bc4 {[%emt 0:00:00]} Bc5 {[%emt 0:00:00]} 4. c3 {[%emt 0:00:00]} Nf6 {[%emt 0:00:00]} 5. d3 {[%emt 0:00:10]} a6 {[%emt 0:00:02]} 6. O-O {[%emt 0:01:45]} O-O {[%emt 0:00:13]} 7. Nbd2 {[%emt 0:00:57]} Ba7 {[%emt 0:00:06]} 8. h3 {[%emt 0:02:32]} d6 {[%emt 0:00:12]} 9. Bb3 {[%emt 0:00:14]} h6 {[%emt 0:00:07]} 10. Re1 {[%emt 0:00:33]} Nh5 {[%emt 0:00:05]} 11. Nf1 {[%emt 0:04:11]} Qf6 {[%emt 0:00:07]} 12. Be3 {[%emt 0:03:52]} Nf4 {[%emt 0:00:07]} 13. Ng3 {[%emt 0:04:39]} g5 {[%emt 0:03:36]} 14. Nh2 {[%emt 0:07:06]} Ne7 {[%emt 0:03:17]} 15. Bxa7 {[%emt 0:08:45]} Rxa7 {[%emt 0:00:10]} 16. Nh5 {[%emt 0:03:53]} Qg6 {[%emt 0:06:42]} 17. Nxf4 {[%emt 0:00:12]} gxf4 {[%emt 0:01:58]} 18. Kh1 {[%emt 0:03:59]} Kh8 {[%emt 0:00:10]} 19. Rg1 {[%emt 0:05:03]} f5 {[%emt 0:06:22]} 20. Qe2 {[%emt 0:03:54]} fxe4 {[%emt 0:02:46]} 21. dxe4 {[%emt 0:00:06]} Qf6 {[%emt 0:06:53]} 22. Nf3 {[%emt 0:03:57]} Ng6 {[%emt 0:02:54]} 23. Kh2 {[%emt 0:02:03]} Ra8 {[%emt 0:05:49]} 24. Rad1 {[%emt 0:02:02]} Nh4 {[%emt 0:05:55]} 25. Rd3 {[%emt 0:02:57]} Nxf3+ {[%emt 0:01:57]} 26. Qxf3 {[%emt 0:00:44]} Qh4 {[%emt 0:00:34]} 27. Bd1 {[%emt 0:03:17]} Be6 {[%emt 0:01:54]} 28. b3 {[%emt 0:00:54]} Rg8 {[%emt 0:04:52]} 29. Qh5 {[%emt 0:07:46]} Qf6 {[%emt 0:01:19]} 30. Qe2 {[%emt 0:02:27]} Rg5 {[%emt 0:02:37]} 31. c4 {[%emt 0:05:13]} Rag8 {[%emt 0:00:37]} 32. g4 {[%emt 0:08:05]} h5 {[%emt 0:00:53]} 33. f3 {[%emt 0:00:33]} R5g6 {[%emt 0:01:48]} 34. Kg2 {[%emt 0:01:56]} Rh6 {[%emt 0:00:32]} 35. Kf1 {[%emt 0:01:29]} Rg7 {[%emt 0:02:09]} 36. Qg2 {[%emt 0:02:22]} Qg5 {[%emt 0:01:34]} 37. Ke1 {[%emt 0:01:38]} b6 {[%emt 0:01:14]} 38. Be2 {[%emt 0:01:05]} Rgh7 {[%emt 0:03:21]} 39. Kd1 {[%emt 0:00:34]} hxg4 {[%emt 0:00:13]} 40. fxg4 {[%emt 0:00:24]} a5 {[%emt 0:00:58]} 41. a4 {[%emt 0:01:13]} Bd7 {[%emt 0:01:19]} 42. Re1 {[%emt 0:01:44]} Bc6 {[%emt 0:01:17]} 43. Kc2 {[%emt 0:00:46]} Kg8 {[%emt 0:03:11]} 44. Bf1 {[%emt 0:00:36]} Qh4 {[%emt 0:03:03]} 45. Red1 {[%emt 0:00:47]} Rf6 {[%emt 0:12:07]} 46. Qf3 {[%emt 0:00:54]} Rd7 {[%emt 0:00:56]} 47. Bg2 {[%emt 0:00:52]} Bb7 {[%emt 0:00:05]} 48. Kb2 {[%emt 0:00:52]} Kf7 {[%emt 0:01:19]} 49. Bh1 {[%emt 0:00:54]} Ke7 {[%emt 0:00:49]} 50. Bg2 {[%emt 0:00:15]} Rh6 {[%emt 0:03:10]} 51. R3d2 {[%emt 0:00:24]} Rd8 {[%emt 0:00:35]} 52. Rd3 {[%emt 0:00:28]} Qf6 {[%emt 0:00:16]} 53. Ka2 {[%emt 0:00:42]} Qg6 {[%emt 0:00:33]} 54. Kb2 {[%emt 0:00:41]} Kf6 {[%emt 0:00:56]} 55. R1d2 {[%emt 0:00:31]} Kg5 {[%emt 0:00:13]} 56. Rd1 {[%emt 0:00:36]} Rdh8 {[%emt 0:01:47]} 57. Re1 {[%emt 0:00:24]} Rh4 {[%emt 0:01:43]} 58. Ka2 {[%emt 0:00:24]} Qe8 {[%emt 0:01:14]} 59. Kb2 {[%emt 0:00:31]} Qc6 {[%emt 0:00:56]} 60. Rd2 {[%emt 0:00:42]} Qc5 {[%emt 0:00:51]} 61. Qc3 {[%emt 0:00:41]} Rf8 {[%emt 0:01:26]} 62. Qf3 {[%emt 0:00:58]} Bc6 {[%emt 0:03:00]} 63. Rdd1 {[%emt 0:02:06]} Qb4 {[%emt 0:00:55]} 64. Ka2 {[%emt 0:01:07]} Rh7 {[%emt 0:00:25]} 65. Rh1 {[%emt 0:00:40]} Rfh8 {[%emt 0:00:29]} 66. Rhe1 {[%emt 0:00:19]} Bxa4 {[%emt 0:01:56]} 67. bxa4 {[%emt 0:00:07]} Qxa4+ {[%emt 0:00:02]} 68. Kb2 {[%emt 0:00:18]} Qxc4 {[%emt 0:00:04]} 69. Rc1 {[%emt 0:01:04]} Qb4+ {[%emt 0:00:18]} 70. Qb3 {[%emt 0:00:44]} Qd2+ {[%emt 0:01:50]} 71. Qc2 {[%emt 0:00:06]} Qd4+ {[%emt 0:01:17]} 72. Qc3 {[%emt 0:00:29]} Qf2+ {[%emt 0:01:05]} 73. Rc2 {[%emt 0:00:17]} Qc5 {[%emt 0:01:00]} 74. Qb3 {[%emt 0:01:37]} Qd4+ {[%emt 0:00:17]} 75. Qc3 {[%emt 0:00:21]} Qc5 {[%emt 0:02:09]} 76. Qb3 {[%emt 0:00:04]} Qd4+ {[%emt 0:00:30]} 77. Qc3 {[%emt 0:00:04]} Qc5 {[%emt 0:00:46]} 78. Qb3 {[%emt 0:00:05]} Qd4+ {[%emt 0:00:09]} 79. Qc3 {[%emt 0:00:04]} f3 {[%emt 0:00:57]} 80. Qxd4 {[%emt 0:01:43]} exd4 {[%emt 0:00:00]} 81. Bf1 {[%emt 0:00:46]} c5 {[%emt 0:00:07]} 82. Kb3 {[%emt 0:00:44]} Re7 {[%emt 0:00:58]} 83. Kc4 {[%emt 0:00:45]} Re5 {[%emt 0:00:18]} 84. Rcc1 {[%emt 0:00:44]} Rhe8 {[%emt 0:00:47]} 85. Kb5 {[%emt 0:00:31]} d5 {[%emt 0:00:11]} 86. Kxb6 {[%emt 0:00:23]} dxe4 {[%emt 0:00:02]} 87. Rxc5 {[%emt 0:00:38]} Rb8+ {[%emt 0:00:43]} 88. Kc7 {[%emt 0:00:03]} Rxc5+ {[%emt 0:00:02]} 89. Kxb8 {[%emt 0:00:05]} e3 {[%emt 0:00:10]} 90. Kb7 {[%emt 0:01:15]} Re5 {[%emt 0:00:28]} 91. Kc6 {[%emt 0:00:32]} e2 {[%emt 0:00:32]} 92. Kd6 {[%emt 0:00:30]} Re8 {[%emt 0:00:19]} 93. Kd5 {[%emt 0:00:34]} d3 {[%emt 0:00:06]} 94. Bxe2 {[%emt 0:00:20]} dxe2 {[%emt 0:00:09]} 95. Kd4 {[%emt 0:00:09]} f2 {[%emt 0:00:05]} 0-1